[Event "Titled Tuesday Blitz March 01 Late 2022"]
[White "Janaszak, Dawid"]
[Black "Kanyamarala, Trisha"]
[WhiteFideId "1119206"]
[BlackFideId "45004722"]
[WhiteElo "2199"]
[BlackElo "2002"]
[Result "0-1"]
[Round "07"]
[TimeControl "180+1"]
[Date "2022.03.02"]
[WhiteClock "0:00:04"]
[BlackClock "0:00:16"]

1. e4 {[%clk 0:03:00]}  c5 {[%clk 0:02:58]} 2. Ne2 {[%clk 0:02:52]}  d6 {[%clk 0:02:57]} 3. Nbc3 {[%clk 0:02:52]}  Nc6 {[%clk 0:02:55]} 4. g3 {[%clk 0:02:52]}  Nf6 {[%clk 0:02:54]} 5. Bg2 {[%clk 0:02:52]}  g6 {[%clk 0:02:54]} 6. O-O {[%clk 0:02:52]}  Bg7 {[%clk 0:02:55]} 7. h3 {[%clk 0:02:47]}  O-O {[%clk 0:02:55]} 8. g4 {[%clk 0:02:48]}  e5 {[%clk 0:02:51]} 9. d3 {[%clk 0:02:47]}  Be6 {[%clk 0:02:47]} 10. f4 {[%clk 0:02:45]}  exf4 {[%clk 0:02:46]} 11. Nxf4 {[%clk 0:02:44]}  Nd4 {[%clk 0:02:45]} 12. Nce2 {[%clk 0:02:36]}  Nd7 {[%clk 0:02:30]} 13. Ng3 {[%clk 0:02:34]}  Ne5 {[%clk 0:02:25]} 14. c3 {[%clk 0:02:31]}  Ndc6 {[%clk 0:02:24]} 15. Kh1 {[%clk 0:02:21]}  Qh4 {[%clk 0:02:18]} 16. Nf5 {[%clk 0:01:51]}  gxf5 {[%clk 0:02:10]} 17. exf5 {[%clk 0:01:52]}  Bd7 {[%clk 0:02:09]} 18. Nd5 {[%clk 0:01:46]}  Bh6 {[%clk 0:01:46]} 19. Bf4 {[%clk 0:01:14]}  Bxf4 {[%clk 0:01:43]} 20. Rxf4 {[%clk 0:01:15]}  Qg5 {[%clk 0:01:41]} 21. Qe1 {[%clk 0:01:09]}  f6 {[%clk 0:01:39]} 22. h4 {[%clk 0:01:02]}  Qh6 {[%clk 0:01:34]} 23. Qg3 {[%clk 0:01:01]}  Rae8 {[%clk 0:01:26]} 24. Rg1 {[%clk 0:01:00]}  Nf7 {[%clk 0:01:21]} 25. Bh3 {[%clk 0:00:52]}  Kh8 {[%clk 0:01:14]} 26. Rg2 {[%clk 0:00:47]}  Ne7 {[%clk 0:01:09]} 27. Ne3 {[%clk 0:00:30]}  Bc6 {[%clk 0:01:06]} 28. Kh2 {[%clk 0:00:24]}  Bxg2 {[%clk 0:01:04]} 29. Bxg2 {[%clk 0:00:25]}  Nc6 {[%clk 0:01:01]} 30. Nd5 {[%clk 0:00:22]}  Re2 {[%clk 0:00:58]} 31. Kh1 {[%clk 0:00:17]}  Rfe8 {[%clk 0:00:57]} 32. g5 {[%clk 0:00:16]}  fxg5 {[%clk 0:00:56]} 33. Rg4 {[%clk 0:00:17]}  gxh4 {[%clk 0:00:49]} 34. Rxh4 {[%clk 0:00:15]}  Qg5 {[%clk 0:00:41]} 35. Qh3 {[%clk 0:00:12]}  Rxg2 {[%clk 0:00:19]} 36. Rxh7+ {[%clk 0:00:09]}  Kg8 {[%clk 0:00:19]} 37. Qxg2 {[%clk 0:00:04]}  Re1+ {[%clk 0:00:16]} 38. Kh2 {[%clk 0:00:03]}  Qxg2+ {[%clk 0:00:16]} 39. Kxg2 {[%clk 0:00:04]}  Kxh7 {[%clk 0:00:16]} 0-1


[Site "https://www.chess.com"]

[Event "Titled Tuesday Blitz March 01 Late 2022"]
[White "Jaracz, Pawel"]
[Black "Bilych, Olexiy"]
[WhiteFideId "1102222"]
[BlackFideId "14156504"]
[WhiteElo "2429"]
[BlackElo "2195"]
[Result "1-0"]
[Round "07"]
[TimeControl "180+1"]
[Date "2022.03.01"]
[WhiteClock "0:00:05"]
[BlackClock "0:00:02"]

1. e4 {[%clk 0:03:00]}  e5 {[%clk 0:02:56]} 2. Nf3 {[%clk 0:03:00]}  Nc6 {[%clk 0:02:56]} 3. Bc4 {[%clk 0:03:00]}  Nf6 {[%clk 0:02:56]} 4. d3 {[%clk 0:03:00]}  Bc5 {[%clk 0:02:56]} 5. Nc3 {[%clk 0:03:00]}  O-O {[%clk 0:02:55]} 6. Bg5 {[%clk 0:02:59]}  h6 {[%clk 0:02:54]} 7. Bh4 {[%clk 0:02:59]}  Be7 {[%clk 0:02:52]} 8. Ne2 {[%clk 0:02:56]}  d6 {[%clk 0:02:46]} 9. c3 {[%clk 0:02:55]}  Be6 {[%clk 0:02:43]} 10. Bxe6 {[%clk 0:02:39]}  fxe6 {[%clk 0:02:44]} 11. O-O {[%clk 0:02:38]}  Qd7 {[%clk 0:02:35]} 12. Qb3 {[%clk 0:02:28]}  b6 {[%clk 0:02:17]} 13. Rad1 {[%clk 0:02:19]}  Kh8 {[%clk 0:02:17]} 14. Bxf6 {[%clk 0:02:16]}  Bxf6 {[%clk 0:02:17]} 15. d4 {[%clk 0:02:16]}  Qf7 {[%clk 0:02:06]} 16. Qa4 {[%clk 0:02:07]}  Qe8 {[%clk 0:02:05]} 17. Qc4 {[%clk 0:02:00]}  Rc8 {[%clk 0:01:42]} 18. Ng3 {[%clk 0:01:58]}  exd4 {[%clk 0:01:41]} 19. cxd4 {[%clk 0:01:58]}  e5 {[%clk 0:01:39]} 20. d5 {[%clk 0:01:56]}  Ne7 {[%clk 0:01:35]} 21. Qa6 {[%clk 0:01:51]}  g5 {[%clk 0:01:17]} 22. Qxa7 {[%clk 0:01:40]}  g4 {[%clk 0:01:17]} 23. Nd2 {[%clk 0:01:36]}  h5 {[%clk 0:01:15]} 24. Nc4 {[%clk 0:01:28]}  h4 {[%clk 0:01:07]} 25. Ne2 {[%clk 0:01:28]}  h3 {[%clk 0:01:04]} 26. gxh3 {[%clk 0:01:20]}  gxh3 {[%clk 0:01:00]} 27. Rd3 {[%clk 0:01:20]}  Qh5 {[%clk 0:00:57]} 28. Ng3 {[%clk 0:01:15]}  Rg8 {[%clk 0:00:52]} 29. Qa4 {[%clk 0:01:06]}  Qg4 {[%clk 0:00:35]} 30. Kh1 {[%clk 0:01:04]}  Ng6 {[%clk 0:00:27]} 31. Qd1 {[%clk 0:01:04]}  Nf4 {[%clk 0:00:18]} 32. Qxg4 {[%clk 0:01:03]}  Rxg4 {[%clk 0:00:19]} 33. Rc3 {[%clk 0:01:01]}  Bh4 {[%clk 0:00:19]} 34. Nxd6 {[%clk 0:01:00]}  Rf8 {[%clk 0:00:18]} 35. Ndf5 {[%clk 0:00:59]}  Bd8 {[%clk 0:00:17]} 36. Rc6 {[%clk 0:00:53]}  Rg6 {[%clk 0:00:14]} 37. Rfc1 {[%clk 0:00:51]}  Kh7 {[%clk 0:00:10]} 38. Rxg6 {[%clk 0:00:43]}  Kxg6 {[%clk 0:00:11]} 39. Rc6+ {[%clk 0:00:43]}  Rf6 {[%clk 0:00:12]} 40. Rc3 {[%clk 0:00:36]}  Kg5 {[%clk 0:00:08]} 41. f3 {[%clk 0:00:36]}  Rg6 {[%clk 0:00:06]} 42. Kg1 {[%clk 0:00:34]}  b5 {[%clk 0:00:06]} 43. Kf1 {[%clk 0:00:31]}  Ra6 {[%clk 0:00:06]} 44. a3 {[%clk 0:00:31]}  b4 {[%clk 0:00:06]} 45. Rb3 {[%clk 0:00:28]}  bxa3 {[%clk 0:00:06]} 46. bxa3 {[%clk 0:00:29]}  c6 {[%clk 0:00:06]} 47. d6 {[%clk 0:00:27]}  c5 {[%clk 0:00:06]} 48. Rb8 {[%clk 0:00:20]}  Bf6 {[%clk 0:00:04]} 49. d7 {[%clk 0:00:16]}  Rxa3 {[%clk 0:00:03]} 50. d8=Q {[%clk 0:00:16]}  Bxd8 {[%clk 0:00:03]} 51. Rxd8 {[%clk 0:00:16]}  Ra1+ {[%clk 0:00:04]} 52. Kf2 {[%clk 0:00:17]}  Ra2+ {[%clk 0:00:05]} 53. Ke3 {[%clk 0:00:16]}  Ra3+ {[%clk 0:00:01]} 54. Kd2 {[%clk 0:00:15]}  Ra2+ {[%clk 0:00:02]} 55. Kc3 {[%clk 0:00:15]}  Rxh2 {[%clk 0:00:03]} 56. Rg8+ {[%clk 0:00:15]}  Kf6 {[%clk 0:00:03]} 57. Rh8 {[%clk 0:00:15]}  Rf2 {[%clk 0:00:02]} 58. Rh6+ {[%clk 0:00:15]}  Kf7 {[%clk 0:00:02]} 59. Nd6+ {[%clk 0:00:13]}  Ke7 {[%clk 0:00:02]} 60. Ngf5+ {[%clk 0:00:14]}  Kd7 {[%clk 0:00:03]} 61. Nc4 {[%clk 0:00:09]}  Rxf3+ {[%clk 0:00:03]} 62. Kc2 {[%clk 0:00:10]}  Rf2+ {[%clk 0:00:02]} 63. Kb3 {[%clk 0:00:10]}  h2 {[%clk 0:00:02]} 64. Nxe5+ {[%clk 0:00:10]}  Kc7 {[%clk 0:00:02]} 65. Rh7+ {[%clk 0:00:09]}  Kb6 {[%clk 0:00:02]} 66. Nc4+ {[%clk 0:00:09]}  Kc6 {[%clk 0:00:02]} 67. Ne7+ {[%clk 0:00:07]}  Kb5 {[%clk 0:00:02]} 68. Na3+ {[%clk 0:00:05]}  Ka5 {[%clk 0:00:02]} 69. Nd5 {[%clk 0:00:05]}  Rf3+ {[%clk 0:00:02]} 70. Kc4 {[%clk 0:00:05]}  Rh3 {[%clk 0:00:02]} 71. Ra7# {[%clk 0:00:05]} 1-0


[Site "https://www.chess.com"]

[Event "Titled Tuesday Blitz March 01 Late 2022"]
[White "Jarocka, Liwia"]
[Black "Burke, Paul"]
[WhiteFideId "21807558"]
[BlackFideId "2605767"]
[WhiteElo "1896"]
[BlackElo "1817"]
[Result "1-0"]
[Round "07"]
[TimeControl "180+1"]
[Date "2022.03.02"]
[WhiteClock "0:01:27"]
[BlackClock "0:01:42"]

1. e4 {[%clk 0:03:00]}  e5 {[%clk 0:02:56]} 2. Nf3 {[%clk 0:02:57]}  Nc6 {[%clk 0:02:56]} 3. Bc4 {[%clk 0:02:57]}  Be7 {[%clk 0:02:56]} 4. O-O {[%clk 0:02:57]}  Nf6 {[%clk 0:02:56]} 5. Re1 {[%clk 0:02:56]}  Nxe4 {[%clk 0:02:54]} 6. Rxe4 {[%clk 0:02:51]}  d5 {[%clk 0:02:53]} 7. Bxd5 {[%clk 0:02:51]}  Qxd5 {[%clk 0:02:53]} 8. Nc3 {[%clk 0:02:51]}  Qd8 {[%clk 0:02:50]} 9. Nxe5 {[%clk 0:02:47]}  Nxe5 {[%clk 0:02:50]} 10. Rxe5 {[%clk 0:02:47]}  O-O {[%clk 0:02:50]} 11. d3 {[%clk 0:02:47]}  Bd6 {[%clk 0:02:50]} 12. Re1 {[%clk 0:02:44]}  Qh4 {[%clk 0:02:49]} 13. g3 {[%clk 0:02:43]}  Qh3 {[%clk 0:02:49]} 14. Qf3 {[%clk 0:02:41]}  Bg4 {[%clk 0:02:48]} 15. Qg2 {[%clk 0:02:41]}  Qh5 {[%clk 0:02:48]} 16. Qd5 {[%clk 0:02:28]}  Rae8 {[%clk 0:02:29]} 17. Bf4 {[%clk 0:02:01]}  Bxf4 {[%clk 0:02:23]} 18. Qxh5 {[%clk 0:01:59]}  Bxh5 {[%clk 0:02:22]} 19. gxf4 {[%clk 0:01:59]}  Bf3 {[%clk 0:02:14]} 20. h3 {[%clk 0:01:58]}  f5 {[%clk 0:02:11]} 21. Kh2 {[%clk 0:01:58]}  b6 {[%clk 0:02:03]} 22. Kg3 {[%clk 0:01:57]}  Ba8 {[%clk 0:02:02]} 23. Nb5 {[%clk 0:01:54]}  a5 {[%clk 0:01:43]} 24. Nxc7 {[%clk 0:01:36]}  Rc8 {[%clk 0:01:42]} 25. Re7 {[%clk 0:01:27]} 1-0


[Site "https://www.chess.com"]

[Event "Titled Tuesday Blitz March 01 Late 2022"]
[White "Kanyamarala, Tarun"]
[Black "Derraugh, Geordie"]
[WhiteFideId "45004714"]
[BlackFideId "2603950"]
[WhiteElo "2570"]
[BlackElo "2431"]
[Result "1-0"]
[Round "07"]
[TimeControl "180+1"]
[Date "2022.03.02"]
[WhiteClock "0:00:38"]
[BlackClock "0:00:04"]

1. d4 {[%clk 0:03:00]}  Nf6 {[%clk 0:02:59]} 2. c4 {[%clk 0:03:00]}  g6 {[%clk 0:03:00]} 3. Nc3 {[%clk 0:02:59]}  d5 {[%clk 0:03:00]} 4. cxd5 {[%clk 0:03:00]}  Nxd5 {[%clk 0:03:00]} 5. e4 {[%clk 0:03:00]}  Nxc3 {[%clk 0:03:00]} 6. bxc3 {[%clk 0:03:01]}  Bg7 {[%clk 0:03:01]} 7. Nf3 {[%clk 0:03:01]}  O-O {[%clk 0:03:00]} 8. Be2 {[%clk 0:03:00]}  c5 {[%clk 0:03:01]} 9. O-O {[%clk 0:02:57]}  Nc6 {[%clk 0:03:02]} 10. Be3 {[%clk 0:02:56]}  Bg4 {[%clk 0:03:01]} 11. d5 {[%clk 0:02:52]}  Bxf3 {[%clk 0:03:00]} 12. Bxf3 {[%clk 0:02:52]}  Ne5 {[%clk 0:03:00]} 13. Bxc5 {[%clk 0:02:48]}  Nxf3+ {[%clk 0:03:00]} 14. Qxf3 {[%clk 0:02:47]}  Rc8 {[%clk 0:02:50]} 15. Bd4 {[%clk 0:02:47]}  Bxd4 {[%clk 0:02:22]} 16. cxd4 {[%clk 0:02:47]}  Rc4 {[%clk 0:02:21]} 17. Qd3 {[%clk 0:02:42]}  Qc7 {[%clk 0:02:20]} 18. h3 {[%clk 0:02:17]}  Rc8 {[%clk 0:02:19]} 19. Rfd1 {[%clk 0:02:16]}  b5 {[%clk 0:02:04]} 20. Rab1 {[%clk 0:02:08]}  b4 {[%clk 0:02:03]} 21. Rb3 {[%clk 0:02:04]}  a5 {[%clk 0:02:03]} 22. a3 {[%clk 0:02:03]}  Rc3 {[%clk 0:01:15]} 23. Rxc3 {[%clk 0:02:02]}  Qxc3 {[%clk 0:01:16]} 24. axb4 {[%clk 0:01:46]}  Qxd3 {[%clk 0:01:05]} 25. Rxd3 {[%clk 0:01:45]}  axb4 {[%clk 0:01:06]} 26. Kf1 {[%clk 0:01:38]}  Rc2 {[%clk 0:00:57]} 27. Rb3 {[%clk 0:01:29]}  Rc4 {[%clk 0:00:56]} 28. Ke2 {[%clk 0:01:29]}  Rxd4 {[%clk 0:00:56]} 29. Ke3 {[%clk 0:01:29]}  Rc4 {[%clk 0:00:45]} 30. Kd3 {[%clk 0:01:29]}  Rc1 {[%clk 0:00:45]} 31. Rxb4 {[%clk 0:01:29]}  Rg1 {[%clk 0:00:31]} 32. g3 {[%clk 0:01:25]}  g5 {[%clk 0:00:32]} 33. e5 {[%clk 0:01:13]}  Kg7 {[%clk 0:00:29]} 34. Rb7 {[%clk 0:01:07]}  Rd1+ {[%clk 0:00:25]} 35. Ke4 {[%clk 0:01:07]}  Re1+ {[%clk 0:00:25]} 36. Kf5 {[%clk 0:01:04]}  Rd1 {[%clk 0:00:11]} 37. Rxe7 {[%clk 0:00:53]}  Rxd5 {[%clk 0:00:11]} 38. Kxg5 {[%clk 0:00:53]}  h6+ {[%clk 0:00:03]} 39. Kf5 {[%clk 0:00:52]}  Rb5 {[%clk 0:00:03]} 40. f4 {[%clk 0:00:50]}  Kf8 {[%clk 0:00:03]} 41. Ra7 {[%clk 0:00:48]}  Kg7 {[%clk 0:00:03]} 42. g4 {[%clk 0:00:45]}  Rb3 {[%clk 0:00:02]} 43. e6 {[%clk 0:00:43]}  Rb5+ {[%clk 0:00:02]} 44. Ke4 {[%clk 0:00:43]}  Rb4+ {[%clk 0:00:02]} 45. Kf3 {[%clk 0:00:44]}  Rb3+ {[%clk 0:00:02]} 46. Kg2 {[%clk 0:00:44]}  Rb2+ {[%clk 0:00:03]} 47. Kg3 {[%clk 0:00:44]}  Rb3+ {[%clk 0:00:03]} 48. Kh4 {[%clk 0:00:44]}  Kg6 {[%clk 0:00:03]} 49. Rxf7 {[%clk 0:00:39]}  h5 {[%clk 0:00:04]} 50. f5+ {[%clk 0:00:38]}  Kh6 {[%clk 0:00:04]} 51. g5# {[%clk 0:00:38]} 1-0


[Site "https://www.chess.com"]

[Event "Titled Tuesday Blitz March 01 Late 2022"]
[White "Kollars, Dmitrij"]
[Black "Goryachkina, Aleksandra"]
[WhiteFideId "12909572"]
[BlackFideId "4147103"]
[WhiteElo "2584"]
[BlackElo "2426"]
[Result "1-0"]
[Round "07"]
[TimeControl "180+1"]
[Date "2022.03.01"]
[WhiteClock "0:00:08"]
[BlackClock "0:00:01"]

1. d4 {[%clk 0:03:00]}  Nf6 {[%clk 0:02:59]} 2. c4 {[%clk 0:03:00]}  e6 {[%clk 0:02:59]} 3. Nf3 {[%clk 0:03:00]}  d5 {[%clk 0:02:59]} 4. g3 {[%clk 0:03:00]}  dxc4 {[%clk 0:02:55]} 5. Bg2 {[%clk 0:03:00]}  c5 {[%clk 0:02:55]} 6. O-O {[%clk 0:02:56]}  Nc6 {[%clk 0:02:54]} 7. dxc5 {[%clk 0:02:56]}  Qxd1 {[%clk 0:02:52]} 8. Rxd1 {[%clk 0:02:57]}  Bxc5 {[%clk 0:02:52]} 9. Nbd2 {[%clk 0:02:57]}  c3 {[%clk 0:02:51]} 10. bxc3 {[%clk 0:02:58]}  O-O {[%clk 0:02:51]} 11. Nb3 {[%clk 0:02:57]}  Be7 {[%clk 0:02:51]} 12. c4 {[%clk 0:02:56]}  Bd7 {[%clk 0:02:49]} 13. Nfd4 {[%clk 0:02:52]}  Rac8 {[%clk 0:02:46]} 14. Nb5 {[%clk 0:02:49]}  Rfd8 {[%clk 0:02:45]} 15. c5 {[%clk 0:02:40]}  Be8 {[%clk 0:02:11]} 16. Bf4 {[%clk 0:02:34]}  Rxd1+ {[%clk 0:02:01]} 17. Rxd1 {[%clk 0:02:35]}  a6 {[%clk 0:01:48]} 18. Nd6 {[%clk 0:02:35]}  Rd8 {[%clk 0:01:48]} 19. Rb1 {[%clk 0:02:18]}  Bxd6 {[%clk 0:01:34]} 20. cxd6 {[%clk 0:02:08]}  e5 {[%clk 0:01:32]} 21. Bxc6 {[%clk 0:02:04]}  exf4 {[%clk 0:01:32]} 22. Bxb7 {[%clk 0:01:31]}  fxg3 {[%clk 0:01:31]} 23. hxg3 {[%clk 0:01:32]}  Rxd6 {[%clk 0:01:31]} 24. Nc5 {[%clk 0:01:32]}  a5 {[%clk 0:01:29]} 25. Bf3 {[%clk 0:01:31]}  h6 {[%clk 0:01:20]} 26. Rb8 {[%clk 0:01:28]}  Kf8 {[%clk 0:01:18]} 27. Ra8 {[%clk 0:01:26]}  g5 {[%clk 0:01:06]} 28. Rxa5 {[%clk 0:01:13]}  Rd1+ {[%clk 0:01:05]} 29. Kg2 {[%clk 0:01:13]}  g4 {[%clk 0:01:05]} 30. Bb7 {[%clk 0:01:13]}  Rd2 {[%clk 0:01:04]} 31. e3 {[%clk 0:01:02]}  Rb2 {[%clk 0:00:59]} 32. Ba8 {[%clk 0:00:51]}  Bb5 {[%clk 0:00:48]} 33. Ne4 {[%clk 0:00:41]}  Nxe4 {[%clk 0:00:33]} 34. Bxe4 {[%clk 0:00:41]}  Bc4 {[%clk 0:00:33]} 35. a4 {[%clk 0:00:40]}  Ra2 {[%clk 0:00:31]} 36. Bc6 {[%clk 0:00:34]}  Ra1 {[%clk 0:00:29]} 37. Rc5 {[%clk 0:00:22]}  Bf1+ {[%clk 0:00:28]} 38. Kh2 {[%clk 0:00:23]}  Ra2 {[%clk 0:00:21]} 39. Kg1 {[%clk 0:00:19]}  Bd3 {[%clk 0:00:18]} 40. a5 {[%clk 0:00:14]}  Ke7 {[%clk 0:00:15]} 41. Bb7 {[%clk 0:00:12]}  Ra1+ {[%clk 0:00:12]} 42. Kg2 {[%clk 0:00:11]}  Bf1+ {[%clk 0:00:12]} 43. Kh2 {[%clk 0:00:12]}  Ra2 {[%clk 0:00:12]} 44. Kg1 {[%clk 0:00:12]}  Ra1 {[%clk 0:00:12]} 45. Kh2 {[%clk 0:00:12]}  Ra2 {[%clk 0:00:13]} 46. Rc1 {[%clk 0:00:12]}  Bd3 {[%clk 0:00:05]} 47. Rc7+ {[%clk 0:00:12]}  Kf6 {[%clk 0:00:04]} 48. Rc6+ {[%clk 0:00:12]}  Kg7 {[%clk 0:00:04]} 49. Rc5 {[%clk 0:00:10]}  Rxf2+ {[%clk 0:00:04]} 50. Kg1 {[%clk 0:00:10]}  Ra2 {[%clk 0:00:04]} 51. Bd5 {[%clk 0:00:09]}  Ra1+ {[%clk 0:00:03]} 52. Kf2 {[%clk 0:00:09]}  Rf1+ {[%clk 0:00:03]} 53. Kg2 {[%clk 0:00:09]}  Ra1 {[%clk 0:00:03]} 54. e4 {[%clk 0:00:08]}  Rb1 {[%clk 0:00:01]} 55. Kf2 {[%clk 0:00:08]}  Rb2+ {[%clk 0:00:02]} 56. Ke3 {[%clk 0:00:08]}  Bf1 {[%clk 0:00:02]} 57. Kf4 {[%clk 0:00:08]}  h5 {[%clk 0:00:02]} 58. Rc7 {[%clk 0:00:08]}  Rf2+ {[%clk 0:00:02]} 59. Kg5 {[%clk 0:00:09]}  Rh2 {[%clk 0:00:01]} 60. Rxf7+ {[%clk 0:00:08]} 1-0


[Site "https://www.chess.com"]

[Event "Titled Tuesday Blitz March 01 Late 2022"]
[White "Krishnan, Varun"]
[Black "Dourerassou, Jonathan"]
[WhiteFideId "5054508"]
[BlackFideId "628050"]
[WhiteElo "2618"]
[BlackElo "2513"]
[Result "1-0"]
[Round "07"]
[TimeControl "180+1"]
[Date "2022.03.01"]
[WhiteClock "0:00:27"]
[BlackClock "0:00:57"]

1. e4 {[%clk 0:03:00]}  d6 {[%clk 0:03:00]} 2. d4 {[%clk 0:02:59]}  g6 {[%clk 0:03:01]} 3. Nc3 {[%clk 0:02:58]}  Bg7 {[%clk 0:03:02]} 4. Be3 {[%clk 0:02:57]}  c6 {[%clk 0:03:02]} 5. h4 {[%clk 0:02:55]}  Qa5 {[%clk 0:03:01]} 6. h5 {[%clk 0:02:53]}  Nf6 {[%clk 0:03:01]} 7. h6 {[%clk 0:02:51]}  Bf8 {[%clk 0:03:01]} 8. f3 {[%clk 0:02:48]}  b5 {[%clk 0:03:01]} 9. Qd2 {[%clk 0:02:47]}  Nbd7 {[%clk 0:03:00]} 10. g4 {[%clk 0:02:35]}  Nb6 {[%clk 0:02:56]} 11. a3 {[%clk 0:02:23]}  b4 {[%clk 0:02:48]} 12. Na2 {[%clk 0:02:15]}  c5 {[%clk 0:02:38]} 13. axb4 {[%clk 0:02:06]}  cxb4 {[%clk 0:02:34]} 14. Qxb4 {[%clk 0:02:05]}  Qxb4+ {[%clk 0:02:33]} 15. Nxb4 {[%clk 0:02:05]}  Bd7 {[%clk 0:02:34]} 16. d5 {[%clk 0:02:02]}  Nc8 {[%clk 0:02:29]} 17. Ba6 {[%clk 0:01:43]}  Rb8 {[%clk 0:02:25]} 18. c3 {[%clk 0:01:38]}  e6 {[%clk 0:02:23]} 19. Bxc8 {[%clk 0:01:28]}  Rxc8 {[%clk 0:02:23]} 20. Bd4 {[%clk 0:01:20]}  e5 {[%clk 0:02:23]} 21. Be3 {[%clk 0:01:18]}  Be7 {[%clk 0:02:23]} 22. Rxa7 {[%clk 0:01:17]}  Bb5 {[%clk 0:02:14]} 23. Nh3 {[%clk 0:01:09]}  Bd8 {[%clk 0:02:10]} 24. Kf2 {[%clk 0:01:07]}  O-O {[%clk 0:02:09]} 25. Rha1 {[%clk 0:01:05]}  Nd7 {[%clk 0:02:02]} 26. Rb7 {[%clk 0:00:59]}  Rb8 {[%clk 0:01:40]} 27. Raa7 {[%clk 0:00:56]}  Bb6 {[%clk 0:01:20]} 28. Rxd7 {[%clk 0:00:48]}  Bxa7 {[%clk 0:01:06]} 29. Rxa7 {[%clk 0:00:46]}  f5 {[%clk 0:01:06]} 30. gxf5 {[%clk 0:00:41]}  gxf5 {[%clk 0:01:07]} 31. Ng5 {[%clk 0:00:40]}  fxe4 {[%clk 0:01:06]} 32. Nxe4 {[%clk 0:00:38]}  Rbd8 {[%clk 0:01:04]} 33. Bg5 {[%clk 0:00:37]}  Ra8 {[%clk 0:00:59]} 34. Nf6+ {[%clk 0:00:32]}  Rxf6 {[%clk 0:00:59]} 35. Rxa8+ {[%clk 0:00:31]}  Rf8 {[%clk 0:01:00]} 36. Rxf8+ {[%clk 0:00:30]}  Kxf8 {[%clk 0:01:01]} 37. f4 {[%clk 0:00:28]}  Kf7 {[%clk 0:00:56]} 38. fxe5 {[%clk 0:00:28]}  dxe5 {[%clk 0:00:57]} 39. b3 {[%clk 0:00:27]}  Kg6 {[%clk 0:00:57]} 40. Be3 {[%clk 0:00:27]}  Kf5 {[%clk 0:00:57]} 41. c4 {[%clk 0:00:28]}  Be8 {[%clk 0:00:57]} 42. c5 {[%clk 0:00:27]}  Ke4 {[%clk 0:00:57]} 43. c6 {[%clk 0:00:27]}  Kf5 {[%clk 0:00:53]} 44. d6 {[%clk 0:00:27]}  Ke6 {[%clk 0:00:52]} 45. d7 {[%clk 0:00:27]}  Bxd7 {[%clk 0:00:53]} 46. cxd7 {[%clk 0:00:28]}  Kxd7 {[%clk 0:00:54]} 47. Nd3 {[%clk 0:00:28]}  Ke6 {[%clk 0:00:54]} 48. b4 {[%clk 0:00:28]}  e4 {[%clk 0:00:54]} 49. Nc5+ {[%clk 0:00:27]}  Kd5 {[%clk 0:00:55]} 50. b5 {[%clk 0:00:27]}  Kd6 {[%clk 0:00:55]} 51. Nxe4+ {[%clk 0:00:27]}  Kc7 {[%clk 0:00:56]} 52. Ng5 {[%clk 0:00:27]}  Kb7 {[%clk 0:00:57]} 53. Nxh7 {[%clk 0:00:27]} 1-0


[Site "https://www.chess.com"]

[Event "Titled Tuesday Blitz March 01 Late 2022"]
[White "Melkumyan, Hrant"]
[Black "Kamsky, Gata"]
[WhiteFideId "13302485"]
[BlackFideId "2000024"]
[WhiteElo "2604"]
[BlackElo "2645"]
[Result "1-0"]
[Round "07"]
[TimeControl "180+1"]
[Date "2022.03.01"]
[WhiteClock "0:00:14"]
[BlackClock "0:00:01"]

1. d4 {[%clk 0:03:00]}  d5 {[%clk 0:02:59]} 2. c4 {[%clk 0:03:00]}  c6 {[%clk 0:02:59]} 3. Nf3 {[%clk 0:03:00]}  Nf6 {[%clk 0:03:00]} 4. Nc3 {[%clk 0:02:59]}  a6 {[%clk 0:03:00]} 5. g3 {[%clk 0:02:57]}  Bf5 {[%clk 0:02:57]} 6. Bg2 {[%clk 0:02:55]}  e6 {[%clk 0:02:57]} 7. O-O {[%clk 0:02:54]}  Be7 {[%clk 0:02:55]} 8. Nh4 {[%clk 0:02:50]}  Bg6 {[%clk 0:02:55]} 9. Nxg6 {[%clk 0:02:48]}  hxg6 {[%clk 0:02:54]} 10. Qd3 {[%clk 0:02:45]}  Nbd7 {[%clk 0:02:53]} 11. b3 {[%clk 0:02:42]}  O-O {[%clk 0:02:52]} 12. Bb2 {[%clk 0:02:42]}  Re8 {[%clk 0:02:44]} 13. e3 {[%clk 0:02:42]}  Qb8 {[%clk 0:02:42]} 14. Rfc1 {[%clk 0:02:40]}  Rd8 {[%clk 0:02:40]} 15. Qe2 {[%clk 0:02:37]}  Qa7 {[%clk 0:02:36]} 16. a3 {[%clk 0:02:33]}  Rac8 {[%clk 0:02:34]} 17. c5 {[%clk 0:02:18]}  e5 {[%clk 0:02:22]} 18. dxe5 {[%clk 0:01:35]}  Nxe5 {[%clk 0:02:22]} 19. Nxd5 {[%clk 0:01:31]}  Nxd5 {[%clk 0:02:21]} 20. Bxe5 {[%clk 0:01:31]}  Bxc5 {[%clk 0:02:21]} 21. b4 {[%clk 0:01:28]}  Be7 {[%clk 0:02:17]} 22. Qb2 {[%clk 0:01:12]}  Nf6 {[%clk 0:02:03]} 23. Bh3 {[%clk 0:01:08]}  Ra8 {[%clk 0:02:02]} 24. Rd1 {[%clk 0:01:06]}  a5 {[%clk 0:01:55]} 25. Bd4 {[%clk 0:01:06]}  Qb8 {[%clk 0:01:40]} 26. b5 {[%clk 0:01:06]}  a4 {[%clk 0:01:08]} 27. Bg2 {[%clk 0:00:51]}  Qd6 {[%clk 0:01:05]} 28. bxc6 {[%clk 0:00:47]}  bxc6 {[%clk 0:01:04]} 29. Qc2 {[%clk 0:00:47]}  Rdc8 {[%clk 0:00:56]} 30. Qc4 {[%clk 0:00:38]}  Qc7 {[%clk 0:00:34]} 31. Rdc1 {[%clk 0:00:35]}  Ra5 {[%clk 0:00:22]} 32. Bh3 {[%clk 0:00:33]}  Rb8 {[%clk 0:00:21]} 33. Qxc6 {[%clk 0:00:27]}  Qxc6 {[%clk 0:00:21]} 34. Rxc6 {[%clk 0:00:28]}  Rab5 {[%clk 0:00:21]} 35. Rc4 {[%clk 0:00:25]}  Rb1+ {[%clk 0:00:20]} 36. Rxb1 {[%clk 0:00:25]}  Rxb1+ {[%clk 0:00:20]} 37. Kg2 {[%clk 0:00:26]}  Bxa3 {[%clk 0:00:20]} 38. Rxa4 {[%clk 0:00:26]}  Bd6 {[%clk 0:00:18]} 39. Ra8+ {[%clk 0:00:26]}  Rb8 {[%clk 0:00:18]} 40. Ra6 {[%clk 0:00:26]}  Be7 {[%clk 0:00:17]} 41. Ra1 {[%clk 0:00:22]}  Ne8 {[%clk 0:00:16]} 42. Ra6 {[%clk 0:00:16]}  Bf6 {[%clk 0:00:16]} 43. Bc5 {[%clk 0:00:16]}  Nc7 {[%clk 0:00:14]} 44. Rc6 {[%clk 0:00:15]}  Nd5 {[%clk 0:00:14]} 45. Bg4 {[%clk 0:00:16]}  Nc3 {[%clk 0:00:13]} 46. Bf3 {[%clk 0:00:14]}  Re8 {[%clk 0:00:10]} 47. h4 {[%clk 0:00:14]}  Ne4 {[%clk 0:00:09]} 48. Bb4 {[%clk 0:00:13]}  g5 {[%clk 0:00:07]} 49. Rc4 {[%clk 0:00:13]}  Nxf2 {[%clk 0:00:01]} 50. Kxf2 {[%clk 0:00:12]}  gxh4 {[%clk 0:00:02]} 51. gxh4 {[%clk 0:00:13]}  Rb8 {[%clk 0:00:01]} 52. h5 {[%clk 0:00:13]}  Kh7 {[%clk 0:00:01]} 53. Bc5 {[%clk 0:00:13]}  Rb2+ {[%clk 0:00:01]} 54. Be2 {[%clk 0:00:13]}  Be5 {[%clk 0:00:01]} 55. Kf3 {[%clk 0:00:14]} 1-0


[Site "https://www.chess.com"]